[Event "LEM Niedersachsen-A-Open 2025"]
[Site "Verden"]
[Date "2025.01.04"]
[Round "5.26"]
[White "Ludwig, Bernard"]
[Black "Kozik, Andreas"]
[Result "1/2-1/2"]
[ECO "D35"]
[WhiteElo "1962"]
[BlackElo "1868"]
[Annotator "RC"]
[PlyCount "70"]
[EventDate "2024.12.27"]
[EventType "swiss"]
[EventCountry "GER"]
[SourceTitle "playchess.com"]
[Source "ChessBase"]
[SourceQuality "1"]
[TimeControl "40/5400+30:1800+30"]

1. Nf3 {[%emt 0:00:03]} d5 {[%emt 0:00:05]} 2. d4 {[%emt 0:00:04]} Nf6 {[%emt 0:00:07]} 3. c4 {[%emt 0:00:05]} e6 {[%emt 0:00:06]} 4. Nc3 {[%emt 0:00:07]} Be7 {[%emt 0:00:12]} 5. cxd5 {[%emt 0:00:21]} exd5 {[%emt 0:00:38]} 6. Bg5 {[%emt 0:00:24]} O-O {[%emt 0:00:37]} 7. Qc2 {[%emt 0:00:29]} Re8 {[%emt 0:06:06]} 8. e3 {[%emt 0:01:51]} h6 {[%emt 0:00:25]} 9. Bh4 {[%emt 0:02:27]} c5 {[%emt 0:00:23]} 10. Bb5 {[%emt 0:06:36]} Nc6 {[%emt 0:09:30]} 11. O-O {[%emt 0:04:50]} cxd4 {[%emt 0:09:21]} 12. Nxd4 {[%emt 0:03:06]} Nxd4 {[%emt 0:02:31]} 13. exd4 {[%emt 0:00:10]} Bd7 {[%emt 0:01:23]} 14. Qa4 {[%emt 0:12:49]} Bxb5 {[%emt 0:16:06]} 15. Qxb5 {[%emt 0:01:04]} Rb8 {[%emt 0:00:59]} 16. Rfe1 {[%emt 0:13:29]} a6 {[%emt 0:05:35]} 17. Qb3 {[%emt 0:01:14]} b5 {[%emt 0:07:55]} 18. Re5 {[%emt 0:08:34]} Nd7 {[%emt 0:17:39]} 19. Rxe7 {[%emt 0:07:57]} Rxe7 {[%emt 0:00:13]} 20. Nxd5 {[%emt 0:01:47]} g5 {[%emt 0:04:45]} 21. Nxe7+ {[%emt 0:03:33]} Qxe7 {[%emt 0:00:04]} 22. Bg3 {[%emt 0:00:56]} Rc8 {[%emt 0:00:36]} 23. f3 {[%emt 0:05:49]} Qe2 {[%emt 0:02:08]} 24. Re1 {[%emt 0:01:35]} Qd2 {[%emt 0:00:11]} 25. Rd1 {[%emt 0:13:32]} Rc1 {[%emt 0:01:09]} 26. Rxc1 {[%emt 0:00:44]} Qxc1+ {[%emt 0:00:07]} 27. Kf2 {[%emt 0:00:06]} Qd2+ {[%emt 0:00:08]} 28. Kf1 {[%emt 0:00:20]} Qxd4 {[%emt 0:00:08]} 29. Bf2 {[%emt 0:01:07]} Qd2 {[%emt 0:02:19]} 30. Be3 {[%emt 0:02:40]} Qd6 {[%emt 0:00:28]} 31. Qc3 {[%emt 0:01:31]} Qd1+ {[%emt 0:08:05]} 32. Kf2 {[%emt 0:01:06]} Qd6 {[%emt 0:00:05]} 33. Bd4 {[%emt 0:00:50]} Kf8 {[%emt 0:02:46]} 34. Bg7+ {[%emt 0:01:35]} Kg8 {[%emt 0:00:25]} 35. Bd4 {[%emt 0:01:19]} Kf8 {[%emt 0:00:05]} 1/2-1/2

[Event "LEM Niedersachsen-A-Open 2025"]
[Site "Verden"]
[Date "2025.01.04"]
[Round "5.28"]
[White "Aden, Keno"]
[Black "Beckmann, Jonathan"]
[Result "1-0"]
[ECO "E11"]
[WhiteElo "1889"]
[BlackElo "1812"]
[Annotator "NA RC"]
[PlyCount "89"]
[EventDate "2024.12.27"]
[EventType "swiss"]
[EventCountry "GER"]
[SourceTitle "playchess.com"]
[Source "ChessBase"]
[SourceQuality "1"]
[TimeControl "40/5400+30:1800+30"]

1. d4 {[%emt 0:00:01]} Nf6 {[%emt 0:00:05]} 2. Nf3 {[%emt 0:00:03]} e6 {[%emt 0:00:06]} 3. c4 {[%emt 0:00:05]} Bb4+ {[%emt 0:00:06]} 4. Bd2 {[%emt 0:00:19]} Qe7 {[%emt 0:00:06]} 5. g3 {[%emt 0:00:44]} O-O {[%emt 0:00:11]} 6. Bg2 {[%emt 0:00:03]} Bxd2+ {[%emt 0:00:49]} 7. Nbxd2 {[%emt 0:00:54]} d6 {[%emt 0:00:36]} 8. O-O {[%emt 0:00:10]} e5 {[%emt 0:00:44]} 9. e4 {[%emt 0:05:08]} Bg4 {[%emt 0:04:23]} 10. Qb3 {[%emt 0:02:36] 10.Qc2 is setting a new trend. E11: Bogo-Indian.} c6 {[%emt 0:07:56]} 11. Rfe1 {[%emt 0:10:17]} Bxf3 {[%emt 0:18:14]} 12. Nxf3 {[%emt 0:02:41]} a5 $146 {[%emt 0:03:23]} ({Predecessor:} 12... c5 13. d5 b6 14. Qc2 Nbd7 15. Bh3 g6 16. Nh4 Nh5 17. Bxd7 Qxd7 18. Qe2 Ng7 {0-1 Flajsman,P (1870)-Levitsky,A (2280) EU-ch U18 Bratislava 2019 (1)}) 13. Rac1 {[%emt 0:13:01]} Na6 {[%emt 0:08:15]} 14. Qc3 {[%emt 0:05:20]} Rfe8 {[%emt 0:08:44]} 15. b3 {[%emt 0:09:25]} ({Of course not} 15. Qxa5 c5 $11 (15... Nc5 16. Qd2 $15)) 15... Qc7 {[%emt 0:08:33]} 16. a3 {[%emt 0:01:07]} exd4 {[%emt 0:00:22]} (16... Qe7 $11) 17. Nxd4 {[%emt 0:02:56]} Nc5 {[%emt 0:00:59]} 18. f3 {[%emt 0:03:36]} Ne6 {[%emt 0:10:21]} 19. Nf5 {[%emt 0:01:36]} b5 {[%emt 0:03:46]} 20. cxb5 {[%emt 0:02:00]} Qb6+ {[%emt 0:00:17]} 21. Qe3 {[%emt 0:00:33]} Qxe3+ {[%emt 0:02:33]} 22. Rxe3 {[%emt 0:00:19]} cxb5 {[%emt 0:00:24]} 23. Nxd6 {[%emt 0:00:15]} Reb8 {[%emt 0:00:49]} 24. f4 {[%emt 0:02:16]} Ra7 {[%emt 0:00:48]} 25. e5 {[%emt 0:04:41]} Ng4 {[%emt 0:04:33]} 26. Rec3 {[%emt 0:01:07]} g6 {[%emt 0:00:43]} 27. h3 {[%emt 0:01:06]} Nh6 {[%emt 0:00:19]} 28. Rc8+ {[%emt 0:01:08]} Rxc8 {[%emt 0:00:19]} 29. Rxc8+ {[%emt 0:00:05]} Nf8 {[%emt 0:00:15]} 30. Nxb5 {[%emt 0:01:17]} Ra6 {[%emt 0:01:20]} 31. g4 $18 {[%emt 0:02:42]} Kg7 {[%emt 0:00:25]} 32. Nd6 {[%emt 0:01:03]} Rb6 {[%emt 0:01:17]} 33. Ne8+ {[%emt 0:00:41]} Kg8 {[%emt 0:00:14]} 34. Nf6+ {[%emt 0:00:32]} Kg7 {[%emt 0:00:08]} 35. Bd5 {[%emt 0:03:00]} Ne6 {[%emt 0:02:09]} 36. g5 {[%emt 0:08:18]} Nxf4 {[%emt 0:00:10]} 37. gxh6+ {[%emt 0:00:13]} Kxh6 {[%emt 0:00:09]} 38. Bxf7 {[%emt 0:00:52]} Kg5 {[%emt 0:01:06]} 39. Nxh7+ {[%emt 0:02:15]} Kh4 {[%emt 0:00:14]} 40. Rc4 {[%emt 0:05:20]} g5 {[%emt 0:00:36]} 41. e6 {[%emt 0:30:30]} Rb7 {[%emt 0:30:06]} 42. Nf6 {[%emt 0:00:31]} Rxb3 {[%emt 0:00:42]} 43. e7 {[%emt 0:00:56]} Kg3 {[%emt 0:00:08]} 44. Rxf4 {[%emt 0:01:20]} gxf4 {[%emt 0:00:40]} 45. Bxb3 {[%emt 0:00:06]} 1-0

[Event "LEM Niedersachsen-A-Open 2025"]
[Site "Verden"]
[Date "2025.01.04"]
[Round "5.29"]
[White "Schramm, Kilian"]
[Black "Goertzen, Simon"]
[Result "1-0"]
[ECO "B22"]
[WhiteElo "1834"]
[BlackElo "1887"]
[Annotator "NA RC"]
[PlyCount "117"]
[EventDate "2024.12.27"]
[EventType "swiss"]
[EventCountry "GER"]
[SourceTitle "playchess.com"]
[Source "ChessBase"]
[SourceQuality "1"]
[TimeControl "40/5400+30:1800+30"]

1. e4 {[%emt 0:00:02]} c5 {[%emt 0:00:03]} 2. c3 {[%emt 0:00:05]} Nf6 {[%emt 0:00:14]} 3. e5 {[%emt 0:00:05]} Nd5 {[%emt 0:00:05]} 4. Bc4 {[%emt 0:00:03]} e6 {[%emt 0:08:38]} 5. Nf3 {[%emt 0:00:15]} Nc6 {[%emt 0:01:07]} 6. O-O {[%emt 0:00:54]} Be7 {[%emt 0:02:47]} 7. d4 {[%emt 0:00:18]} cxd4 {[%emt 0:00:11]} 8. cxd4 {[%emt 0:00:06]} d6 {[%emt 0:04:17]} 9. Qe2 {[%emt 0:02:11]} O-O {[%emt 0:00:30]} 10. Rd1 {[%emt 0:05:12]} a6 {[%emt 0:06:42] 10...Qc7 is becoming the main line. B22: Sicilian: 2 c3.} 11. Nc3 {[%emt 0:03:20]} Nxc3 {[%emt 0:01:58]} 12. bxc3 {[%emt 0:00:05]} d5 {[%emt 0:01:34]} 13. Bb3 $146 {[%emt 0:01:54]} ({Predecessor:} 13. Bd3 Bd7 14. Rb1 Na5 15. h4 Bb5 16. Bxb5 axb5 17. h5 h6 18. Rxb5 Qc7 19. Rd3 {1-0 Kovalev,V (2559)-Shandrygin,N (2209) Titled Tuesday intern op 30th Jul Late blitz 2024 (7)}) 13... b5 {[%emt 0:00:56]} 14. h4 {[%emt 0:05:31]} f6 {[%emt 0:07:57]} 15. Bc2 {[%emt 0:11:43]} fxe5 {[%emt 0:01:23]} 16. dxe5 {[%emt 0:00:39]} Ra7 {[%emt 0:14:36]} 17. Qd3 {[%emt 0:05:24]} (17. Be3 $16 Rb7 18. h5) 17... g6 {[%emt 0:03:25] [#]} 18. h5 $1 {[%emt 0:00:44]} Bc5 {[%emt 0:09:52]} 19. hxg6 {[%emt 0:05:34]} hxg6 {[%emt 0:13:18]} 20. Qxg6+ {[%emt 0:03:00]} Rg7 {[%emt 0:00:09]} 21. Qh5 {[%emt 0:00:11] [#]} Rxf3 {[%emt 0:11:31]} 22. Qxf3 {[%emt 0:00:38]} Qh4 {[%emt 0:00:08]} 23. Bf4 {[%emt 0:00:38]} Rf7 {[%emt 0:01:15]} 24. Qg3+ {[%emt 0:00:47]} Qxg3 {[%emt 0:00:17]} 25. Bxg3 {[%emt 0:00:06]} Nxe5 {[%emt 0:00:43]} 26. a4 $2 {[%emt 0:01:50]} (26. Bxe5 Rxf2 27. Bd3 Rxa2+ 28. Kh2 Rxa1 29. Rxa1) 26... Nc4 {[%emt 0:02:55]} 27. Bd3 {[%emt 0:02:58]} (27. axb5 $18 axb5 28. Ra8) 27... Nb2 {[%emt 0:00:27]} 28. Rd2 {[%emt 0:00:06]} Nxa4 {[%emt 0:00:11]} 29. c4 {[%emt 0:01:14]} Bd4 {[%emt 0:04:17]} 30. Raa2 {[%emt 0:08:14]} Nc3 {[%emt 0:00:11]} 31. Rac2 {[%emt 0:00:06]} Bg7 {[%emt 0:03:17]} 32. cxb5 {[%emt 0:01:15]} axb5 {[%emt 0:00:06]} 33. Bxb5 {[%emt 0:00:18]} Bb7 {[%emt 0:01:08]} 34. Be8 {[%emt 0:02:18]} Rf8 {[%emt 0:00:37]} 35. Bg6 {[%emt 0:00:14]} Bc6 {[%emt 0:00:22]} 36. Rd3 {[%emt 0:00:47]} d4 {[%emt 0:00:15]} 37. f4 {[%emt 0:01:16]} Bb5 {[%emt 0:00:38]} 38. Rdd2 {[%emt 0:00:08]} Rf6 {[%emt 0:00:38]} 39. Bd3 {[%emt 0:00:27]} Bxd3 {[%emt 0:00:21]} 40. Rxd3 {[%emt 0:00:07]} Rf5 {[%emt 0:00:17]} 41. Rb2 {[%emt 0:33:05]} Kf7 {[%emt 0:02:26]} 42. Rb7+ {[%emt 0:00:00]} Kg6 {[%emt 0:00:25]} 43. Re7 {[%emt 0:00:00]} Ne2+ {[%emt 0:10:18]} 44. Kf2 {[%emt 0:00:00]} Nxf4 {[%emt 0:00:59]} 45. Bxf4 {[%emt 0:00:00]} Rxf4+ {[%emt 0:00:11]} 46. Rf3 {[%emt 0:00:00]} Rxf3+ {[%emt 0:03:03]} 47. Kxf3 {[%emt 0:00:00]} Kf6 {[%emt 0:00:24]} 48. Rd7 {[%emt 0:00:00]} Bh6 {[%emt 0:01:18]} 49. Rxd4 {[%emt 0:00:00]} e5 {[%emt 0:00:22]} 50. Rd6+ {[%emt 0:00:00]} Kg7 {[%emt 0:00:10]} 51. Ke4 {[%emt 0:00:00]} Bf4 {[%emt 0:00:07]} 52. g4 {[%emt 0:00:00]} Bg3 {[%emt 0:00:45]} 53. Kf5 {[%emt 0:00:00]} Kf7 {[%emt 0:00:24]} 54. g5 {[%emt 0:00:00]} Kg7 {[%emt 0:00:34]} 55. Rd7+ {[%emt 0:00:00]} Kf8 {[%emt 0:01:26]} 56. Kf6 {[%emt 0:00:00]} Ke8 {[%emt 0:00:05]} 57. Re7+ {[%emt 0:00:00]} Kd8 {[%emt 0:00:06]} 58. Kf7 {[%emt 0:00:00]} Bh4 {[%emt 0:01:34]} 59. Rxe5 {[%emt 0:00:00]} 1-0

[Event "LEM Niedersachsen-A-Open 2025"]
[Site "Verden"]
[Date "2025.01.04"]
[Round "5.30"]
[White "Eschholz, Enno"]
[Black "Direk, Oguzhan"]
[Result "1/2-1/2"]
[ECO "B23"]
[WhiteElo "2121"]
[BlackElo "1838"]
[Annotator "TA"]
[PlyCount "74"]
[EventDate "2024.12.27"]
[EventType "swiss"]
[EventCountry "GER"]
[SourceTitle "playchess.com"]
[Source "ChessBase"]
[SourceQuality "1"]
[TimeControl "40/5400+30:1800+30"]

{[%evp 18,74,9,0,8,2,2,8,4,-4,12,-18,5,-12,28,-80,-67,-67,-71,-73,-58,-62,-33,-41,-25,-33,0,0,0,0,0,0,0,0,0,0,14,11,7,9,26,-3,0,0,0,0,9,0,0,0,0,0,0,0,0,-2,-2,-14,-20]} 1. e4 {[%emt 0:00:04]} c5 {[%emt 0:00:35]} 2. Nc3 {[%emt 0:00:05]} e6 {[%emt 0:00:04][%cal Be7e6,Be6d5,Bd5d4][%mdl 32]} 3. g3 {[%emt 0:00:08]} d5 {[%emt 0:03:37]} 4. exd5 {[%emt 0:00:07]} exd5 {[%emt 0:00:06]} 5. Bg2 {[%emt 0:00:06]} Nf6 {[%emt 0:00:13]} 6. Nge2 {[%emt 0:00:26][%cal Bg1e2,Be2f4,Bf4d5][%mdl 32]} Nc6 {[%emt 0:01:25]} 7. O-O {[%emt 0:02:00]} d4 {[%emt 0:07:01]} 8. Ne4 {[%emt 0:01:33]} Be7 {[%emt 0:06:09]} 9. d3 {[%emt 0:00:49]} O-O {[%emt 0:00:15]} 10. Nf4 {[%emt 0:04:44]} Bf5 {[%emt 0:07:59]} 11. Bd2 {[%emt 0:06:56]} Re8 {[%emt 0:07:31]} 12. Re1 {[%emt 0:05:12]} Qd7 {[%emt 0:02:11]} 13. a3 {[%emt 0:07:09]} h6 {[%emt 0:04:11]} 14. Nxf6+ {[%emt 0:02:15]} Bxf6 {[%emt 0:03:40]} 15. Nd5 {[%emt 0:00:29] [#] Black must now prevent Nxf6+.} Be5 {[%emt 0:00:46]} 16. Qc1 {[%emt 0:21:44]} (16. Bxh6 $11 Be6 (16... gxh6 17. Rxe5 Kg7 18. Rxe8 $11) 17. Nf4) 16... Be6 {[%emt 0:05:51]} 17. Nf4 {[%emt 0:00:51]} Bxf4 {[%emt 0:00:13]} 18. Bxf4 {[%emt 0:00:08]} Bd5 {[%emt 0:00:06] [#] ...Bxg2 would now be deadly.} 19. f3 {[%emt 0:11:37]} Re7 {[%emt 0:07:22]} 20. Rxe7 {[%emt 0:01:24]} Qxe7 {[%emt 0:01:11]} 21. Qe1 {[%emt 0:00:38]} Re8 {[%emt 0:00:09]} 22. Qxe7 {[%emt 0:02:48]} Rxe7 {[%emt 0:01:25]} 23. Kf2 {[%emt 0:00:11]} b6 {[%emt 0:00:13]} 24. Re1 {[%emt 0:01:28]} Rxe1 {[%emt 0:03:29]} 25. Kxe1 $11 {[%emt 0:00:07][%mdl 4096] Endgame. KBB-KBN} Kf8 {[%emt 0:01:08]} 26. Bd6+ {[%emt 0:04:14]} Ke8 {[%emt 0:01:34]} 27. Ke2 {[%emt 0:00:51]} g5 {[%emt 0:01:55]} 28. Bh3 {[%emt 0:00:29]} Be6 {[%emt 0:02:35]} 29. Bg2 {[%emt 0:01:43]} Kd7 {[%emt 0:01:57] The position is equal.} 30. Bf8 {[%emt 0:00:08]} h5 {[%emt 0:00:06]} 31. Bh6 {[%emt 0:04:14]} f6 {[%emt 0:02:26]} 32. f4 {[%emt 0:02:38]} g4 {[%emt 0:00:43]} 33. Bg7 {[%emt 0:02:03]} f5 {[%emt 0:02:28]} 34. h3 {[%emt 0:04:34]} Ne7 {[%emt 0:01:40]} 35. hxg4 {[%emt 0:00:10]} hxg4 {[%emt 0:00:21]} 36. Be5 {[%emt 0:00:46]} Bd5 {[%emt 0:00:32]} 37. Bf1 {[%emt 0:02:50]} Ng6 {[%emt 0:04:45] Weighted Error Value: White=0.13 (very precise) /Black=0.09 (flawless) .  Mistake:       	White=1     	---        Inaccurate:     	White=2     	Black=3      OK:         	White=13    	Black=10} 1/2-1/2

[Event "LEM Niedersachsen-A-Open 2025"]
[Site "Verden"]
[Date "2025.01.04"]
[Round "5.31"]
[White "Rausch, Darius"]
[Black "Loecken, Siegfried"]
[Result "1/2-1/2"]
[ECO "B21"]
[WhiteElo "1840"]
[BlackElo "2004"]
[Annotator "NA RC"]
[PlyCount "92"]
[EventDate "2024.12.27"]
[EventType "swiss"]
[EventCountry "GER"]
[SourceTitle "playchess.com"]
[Source "ChessBase"]
[SourceQuality "1"]
[TimeControl "40/5400+30:1800+30"]

1. e4 {[%emt 0:00:02]} c5 {[%emt 0:00:05]} 2. Nc3 {[%emt 0:00:04]} Nc6 {[%emt 0:00:06]} 3. Bb5 {[%emt 0:00:07]} g6 {[%emt 0:00:19]} 4. Bxc6 {[%emt 0:00:05]} dxc6 {[%emt 0:00:05]} 5. f4 {[%emt 0:00:18]} Bg7 {[%emt 0:00:10]} 6. Nf3 {[%emt 0:00:06]} Nf6 {[%emt 0:00:14]} 7. O-O {[%emt 0:00:22]} O-O {[%emt 0:00:05]} 8. d3 {[%emt 0:00:04]} Qc7 {[%emt 0:01:13] B21: Sicilian: 2 f4 and Morra Gambit.} 9. Qe1 {[%emt 0:01:09]} b6 {[%emt 0:04:29]} 10. Qh4 {[%emt 0:04:02]} Ne8 {[%emt 0:05:38]} 11. f5 {[%emt 0:03:44]} gxf5 {[%emt 0:02:10]} 12. Bh6 {[%emt 0:20:14]} Bxh6 {[%emt 0:07:55]} 13. Qxh6 {[%emt 0:00:04]} Qd6 {[%emt 0:00:11]} 14. Qg5+ {[%emt 0:00:31]} Ng7 {[%emt 0:00:35]} 15. Nh4 {[%emt 0:04:11]} f6 {[%emt 0:02:56]} 16. Qh6 {[%emt 0:00:58]} fxe4 {[%emt 0:12:16]} 17. Nxe4 {[%emt 0:12:44]} Qe5 {[%emt 0:01:31]} 18. Rae1 {[%emt 0:01:27]} Qh5 {[%emt 0:01:29]} 19. Qf4 {[%emt 0:01:10]} Bd7 {[%emt 0:10:00]} 20. Ng3 {[%emt 0:05:36]} Qf7 {[%emt 0:02:01]} 21. Qc7 {[%emt 0:06:53]} e6 {[%emt 0:06:53]} 22. Ne4 {[%emt 0:06:03]} f5 {[%emt 0:02:52]} 23. Nd6 {[%emt 0:06:46]} Ne8 {[%emt 0:06:01]} 24. Nxe8 {[%emt 0:02:33]} (24. Nhxf5 $142 exf5 (24... Nxc7 $2 {too greedy.} 25. Nh6+ Kg7 26. Nhxf7 $18) 25. Rxe8) 24... Bxe8 {[%emt 0:00:50]} 25. Qe5 {[%emt 0:01:28]} Bd7 {[%emt 0:00:20]} 26. Rf3 {[%emt 0:03:14]} Qf6 {[%emt 0:00:44]} 27. Rg3+ {[%emt 0:00:28]} Kh8 {[%emt 0:32:52]} 28. Nf3 {[%emt 0:00:35]} Qxe5 {[%emt 0:00:00]} 29. Nxe5 {[%emt 0:00:04]} Be8 {[%emt 0:00:00]} 30. Rh3 {[%emt 0:05:05]} Kg7 {[%emt 0:00:00]} 31. Nf3 {[%emt 0:00:10]} Bg6 {[%emt 0:00:00]} 32. Rxe6 {[%emt 0:01:08]} Rfe8 {[%emt 0:00:00]} 33. Rxe8 {[%emt 0:00:52]} Rxe8 {[%emt 0:00:00]} 34. Kf2 {[%emt 0:00:06]} Kf6 {[%emt 0:00:00]} 35. Nd2 {[%emt 0:01:51]} Rd8 {[%emt 0:00:00]} 36. Re3 {[%emt 0:00:30]} Bf7 {[%emt 0:00:00]} 37. Ke2 {[%emt 0:00:59]} Bh5+ {[%emt 0:00:00]} 38. Kf2 {[%emt 0:00:31]} Bd1 {[%emt 0:00:00]} 39. c3 {[%emt 0:01:29]} Bh5 {[%emt 0:00:00]} 40. Nf3 {[%emt 0:00:58]} a5 {[%emt 0:00:00]} 41. Ne5 {[%emt 0:30:23]} f4 {[%emt 0:25:21]} 42. Rh3 {[%emt 0:10:59]} Bg6 {[%emt 0:00:18]} 43. Nxg6 $1 {[%emt 0:00:00]} hxg6 {[%emt 0:00:00]} 44. Ke2 {[%emt 0:00:00]} a4 $11 {[%emt 0:00:00]} 45. Rh7 {[%emt 0:00:00]} Rd6 {[%emt 0:00:00]} 46. Ra7 {[%emt 0:00:00]} b5 {[%emt 0:00:00]} 1/2-1/2

[Event "LEM Niedersachsen-A-Open 2025"]
[Site "Verden"]
[Date "2025.01.04"]
[Round "5.32"]
[White "Lieb, Max"]
[Black "Harms, Friedjof"]
[Result "1/2-1/2"]
[ECO "A57"]
[WhiteElo "1791"]
[BlackElo "1884"]
[Annotator "NA RC"]
[PlyCount "114"]
[EventDate "2024.12.27"]
[EventType "swiss"]
[EventCountry "GER"]
[SourceTitle "playchess.com"]
[Source "ChessBase"]
[SourceQuality "1"]
[TimeControl "40/5400+30:1800+30"]

1. d4 {[%emt 0:00:04]} Nf6 {[%emt 0:00:05]} 2. c4 {[%emt 1:31:26]} c5 {[%emt 0:00:03]} 3. d5 {[%emt 0:00:00]} b5 {[%emt 0:00:05]} 4. Nc3 {[%emt 0:00:00]} bxc4 {[%emt 0:00:15]} 5. e4 {[%emt 0:00:00]} d6 {[%emt 0:01:07]} 6. Bxc4 {[%emt 0:00:00]} g6 {[%emt 0:00:11]} 7. Nf3 {[%emt 0:00:00]} Nbd7 {[%emt 0:00:34]} 8. O-O {[%emt 0:00:00]} Bg7 {[%emt 0:00:05]} 9. Re1 {[%emt 0:00:00] is the legacy move (9.h3). A57: Benko/Volga Gambit.} Ng4 {[%emt 0:01:22]} 10. Qe2 {[%emt 0:00:00]} O-O {[%emt 0:01:12]} 11. h3 {[%emt 0:00:00]} Nge5 {[%emt 0:00:07]} 12. Nxe5 $1 {[%emt 0:00:00]} Nxe5 {[%emt 0:00:06]} 13. f4 {[%emt 0:00:00]} (13. Bb5 $11) 13... Nxc4 $146 {[%emt 0:00:43]} ({Predecessor:} 13... Nd7 14. Be3 Qa5 15. Bd2 Rb8 16. Nb5 Qb6 17. Bc3 Bxc3 18. bxc3 a6 19. Na3 Qa5 {0-1 Papaefstratiou,D (1209)-Lakinska,S (1629) Vratsa op (Women) 2015 (2)}) 14. Qxc4 {[%emt 0:00:00]} Qa5 {[%emt 0:01:17]} 15. e5 {[%emt 0:00:00]} Ba6 {[%emt 0:01:49]} 16. Qe4 {[%emt 0:00:00]} Rab8 {[%emt 0:01:02]} 17. Re3 {[%emt 0:00:00]} Rb4 {[%emt 0:02:40]} 18. Qf3 {[%emt 0:00:00]} Rfb8 {[%emt 0:05:49]} 19. exd6 {[%emt 0:00:00]} exd6 {[%emt 0:04:40]} 20. f5 {[%emt 0:00:00]} Bd4 {[%emt 0:08:16]} 21. fxg6 {[%emt 0:00:00]} hxg6 {[%emt 0:02:08]} 22. Ne4 {[%emt 0:00:00]} Qd8 {[%emt 0:02:17]} 23. Kh1 {[%emt 0:00:00] [#]} Bxe3 {[%emt 0:00:44]} (23... Bc4 $1 $19 24. Bd2 Bxd5 (24... Rxb2 $2 25. Bc3 $19) (24... Bxb2 25. Rd1 $15)) 24. Bxe3 {[%emt 0:00:00]} (24. Nf6+ $142 Kg7 25. Bxe3) 24... Qe7 {[%emt 0:06:46]} 25. Nf6+ {[%emt 0:00:00]} Kg7 {[%emt 0:00:53]} 26. Re1 {[%emt 0:00:00]} Qd8 {[%emt 0:28:57]} 27. Bg5 {[%emt 0:06:35]} Qh8 {[%emt 0:07:55]} 28. Ne8+ {[%emt 0:05:04]} Rxe8 {[%emt 0:01:06]} 29. Qf6+ {[%emt 0:00:18]} Kh7 {[%emt 0:00:18]} 30. Qxf7+ {[%emt 0:00:13]} Qg7 {[%emt 0:00:25]} 31. Qxe8 {[%emt 0:00:10]} Rb7 {[%emt 0:04:32]} 32. Re7 {[%emt 0:01:54]} Rxe7 {[%emt 0:00:05]} 33. Qxe7 {[%emt 0:00:05]} Qxe7 {[%emt 0:00:03]} 34. Bxe7 {[%emt 0:00:08]} Bc4 {[%emt 0:02:12]} 35. Bxd6 {[%emt 0:00:08]} Bxd5 {[%emt 0:00:32]} 36. Bxc5 {[%emt 0:00:08]} a5 {[%emt 0:00:22]} 37. b3 {[%emt 0:00:52]} a4 {[%emt 0:00:14]} 38. bxa4 {[%emt 0:00:23]} Bxa2 {[%emt 0:00:03]} 39. Kh2 {[%emt 0:00:51]} Bc4 {[%emt 0:00:40]} 40. g4 {[%emt 0:00:27]} Kg7 {[%emt 0:01:09]} 41. Kg3 {[%emt 0:30:11]} Bb3 {[%emt 0:30:24]} 42. a5 {[%emt 0:00:26]} Bc4 {[%emt 0:00:03]} 43. h4 {[%emt 0:00:48]} Kf7 {[%emt 0:00:46]} 44. Kf4 {[%emt 0:00:54]} Ke6 {[%emt 0:02:01]} 45. Kg5 {[%emt 0:00:00]} Kf7 {[%emt 0:00:00]} 46. Bd4 {[%emt 0:00:00]} Bd3 {[%emt 0:00:00]} 47. h5 {[%emt 0:00:00]} gxh5 {[%emt 0:00:00]} 48. Kxh5 $16 {[%emt 0:00:00]} (48. gxh5 $18 Ke8 49. h6) 48... Ke7 {[%emt 0:00:00]} 49. g5 {[%emt 0:00:00]} Kd6 {[%emt 0:00:00]} 50. g6 {[%emt 0:00:00]} Kc6 {[%emt 0:00:00]} 51. g7 {[%emt 0:00:00]} Bc4 {[%emt 0:00:00]} 52. a6 {[%emt 0:00:00]} Kc7 {[%emt 0:00:00]} 53. Ba7 {[%emt 0:00:00]} Bg8 {[%emt 0:00:00]} 54. Kg6 {[%emt 0:00:00]} Kd7 {[%emt 0:00:00]} 55. Kf6 {[%emt 0:00:00]} Kc6 {[%emt 0:00:00] [#]} 56. Bc5 $1 {[%emt 0:00:00]} Kc7 {[%emt 0:00:00]} 57. Bd6+ {[%emt 0:00:00]} Kb6 {[%emt 0:00:00]} 1/2-1/2

[Event "LEM Niedersachsen-A-Open 2025"]
[Site "Verden"]
[Date "2025.01.04"]
[Round "5.33"]
[White "Lehmkuhl, Stefan"]
[Black "Kiesel, Lara"]
[Result "1/2-1/2"]
[ECO "A45"]
[WhiteElo "1874"]
[BlackElo "1825"]
[Annotator "NA RC"]
[PlyCount "34"]
[EventDate "2024.12.27"]
[EventType "swiss"]
[EventCountry "GER"]
[SourceTitle "playchess.com"]
[Source "ChessBase"]
[SourceQuality "1"]
[TimeControl "40/5400+30:1800+30"]

1. d4 {[%emt 0:00:10]} Nf6 {[%emt 0:00:05]} 2. Bg5 {[%emt 0:00:24]} Ne4 {[%emt 0:02:16]} 3. Bh4 {[%emt 0:00:21]} d5 {[%emt 0:00:27]} 4. Nd2 {[%emt 0:00:16]} Nxd2 {[%emt 0:06:27]} 5. Qxd2 {[%emt 0:00:18]} c6 {[%emt 0:00:49]} 6. Nf3 {[%emt 0:00:39]} Qb6 {[%emt 0:02:40]} 7. c3 {[%emt 0:00:11]} Bf5 {[%emt 0:02:47]} 8. e3 {[%emt 0:00:13]} e6 {[%emt 0:00:35]} 9. Be2 {[%emt 0:01:18]} Bd6 {[%emt 0:02:11]} 10. O-O {[%emt 0:00:56]} O-O {[%emt 0:00:12]} 11. Bd3 {[%emt 0:02:57]} Bxd3 {[%emt 0:06:49]} 12. Qxd3 {[%emt 0:02:26]} Nd7 {[%emt 0:00:46]} 13. b3 {[%emt 0:01:28]} Rfe8 {[%emt 1:10:56]} 14. Rac1 {[%emt 0:00:13]} e5 {[%emt 0:00:00]} 15. dxe5 {[%emt 0:00:38]} Nxe5 $11 {[%emt 0:00:00]} 16. Nxe5 {[%emt 0:00:14]} Bxe5 {[%emt 0:00:00]} 17. Bg3 {[%emt 0:02:31]} Bxg3 {[%emt 0:00:00]} 1/2-1/2